fUST/lending_fUST_20250720
["ID","MTS","AMOUNT","RATE_DAILY","PERIOD"]
[373382119,1752978651571,-564.42,0.00023227,2]
[373382120,1752978651581,-545.85,0.00023229,2]
[373382121,1752978651591,-1511.85,0.00023229,2]
[373382122,1752978651600,-460.0,0.00023229,2]
[373382123,1752978651610,-8611.89157407,0.00023245,8]
[373382124,1752978651619,-151.0,0.00023245,7]
[373382125,1752978651628,-151.0,0.00023245,7]
[373382126,1752978651637,-151.0,0.00023245,7]
[373382127,1752978651647,-151.0,0.00023245,7]
[373382128,1752978651657,-368.577004,0.00023245,7]
[373382129,1752978651668,-368.577004,0.00023245,7]
[373382130,1752978651678,-576.5,0.0002325,2]
[373382131,1752978651687,-751.33,0.00023251,2]
[373382132,1752978651698,-460.0,0.00023251,2]
[373382133,1752978651707,-513.12,0.00023252,2]
[373382134,1752978651717,-151.0,0.00023252,7]
[373382135,1752978651726,-165.339498,0.00023252,7]
[373382136,1752978651735,-165.339498,0.00023252,7]
[373382137,1752978651744,-156.548076,0.00023252,7]
[373382138,1752978651754,-158.109093,0.00023252,7]
[373382139,1752978651764,-156.548076,0.00023252,7]
[373382140,1752978651773,-158.109093,0.00023252,7]
[373382141,1752978651782,-151.0,0.00023252,7]
[373382142,1752978651795,-153.45597437,0.00023265,3]
[373382143,1752978651804,-2200.0,0.00023307,2]
[373382144,1752978651813,-151.610801,0.00023316,14]
[373382145,1752978651822,-194.57199344,0.0002332,2]
[373382146,1752978651831,-245.0,0.0002334,7]
[373382147,1752978651841,-3279.64865524,0.00023398,2]
[373382148,1752978651851,-151.0,0.00023398,7]
[373382149,1752978651861,-160.0,0.000234,3]
[373382150,1752978651871,-839.59621281,0.000234,3]
[373382151,1752978651880,-525.91036056,0.000234,3]
[373382152,1752978651890,-160.0,0.00023408,3]
[373382153,1752978651899,-151.610801,0.00023412,8]
[373382154,1752978651909,-2506.33381922,0.00023417,2]
[373382155,1752978651918,-151.610801,0.00023422,14]
[373382156,1752978651928,-429.4514592,0.00023425,2]
[373382157,1752978651937,-429.4514592,0.00023425,2]
[373382158,1752978651947,-429.4514592,0.00023425,2]
[373382159,1752978651957,-429.4514592,0.00023425,2]
[373382160,1752978651966,-231.28369723,0.00023464,2]
[373382161,1752978651976,-500.0,0.00023473,2]
[373382162,1752978651985,-151.0,0.00023486,7]
[373382163,1752978651995,-151.0,0.00023486,7]
[373382164,1752978652004,-151.0,0.00023486,7]
[373382165,1752978652014,-151.0,0.00023486,7]
[373382166,1752978652023,-358.503094,0.00023486,7]
[373382167,1752978652032,-358.503094,0.00023486,7]
[373382168,1752978652044,-8611.89157407,0.00023486,9]
[373382169,1752978652054,-547.95,0.00023498,2]
[373382170,1752978652064,-837.28,0.00023499,2]
[373382171,1752978652074,-880.58,0.00023499,2]
[373382172,1752978652084,-1578.93,0.00023499,2]
[373382173,1752978652094,-93019.48209979,0.000235,4]
[373382174,1752978652216,-476.10675257,0.00018567,2]
[373382175,1752978652226,-458.35179244,0.00018569,2]
[373382176,1752978652236,-699.072,0.00021374,2]
[373382177,1752978652245,-1080.63347131,0.000235,4]
[373382178,1752978652257,-2225.00564741,0.000235,4]
[373382179,1752978652269,-5229.24068,0.000235,4]
[373382180,1752978652281,-509.49004605,0.000235,4]
[373382182,1752979387423,411.79588949,0.0001833,6]
[373382183,1752979618579,168.518692,0.00013699,2]
[373382185,1752979626512,-152.0,0.00017566,2]
[373382241,1752979832805,-300.0,0.00017464,2]
[373382244,1752979832815,-50.01,0.00017465,2]
[373382288,1752979839870,-453.67243545,0.00017465,2]
[373382289,1752979840026,-16245.22998731,0.00017465,2]
[373382291,1752979840036,-152.21247926,0.00017465,2]
[373382292,1752979840046,-39.5663569,0.00017566,2]
[373382293,1752979840055,-16748.91242275,0.00017911,2]
[373382294,1752979840064,-16748.91242275,0.00018357,2]
[373382295,1752979840073,-460.0,0.00018457,2]
[373382296,1752979840082,-460.0,0.00018457,2]
[373382297,1752979840092,-477.9,0.00018457,2]
[373382298,1752979840101,-460.0,0.00018457,2]
[373382299,1752979840111,-467.72107874,0.00018458,2]
[373382300,1752979840120,-460.0,0.00018458,2]
[373382301,1752979840129,-460.0,0.00018458,2]
[373382302,1752979840139,-460.0,0.00018458,2]
[373382303,1752979840148,-460.0,0.00018458,2]
[373382304,1752979840157,-460.0,0.00018458,2]
[373382305,1752979840167,-509.94304532,0.00018458,2]
[373382306,1752979840176,-460.0,0.00018458,2]
[373382307,1752979840187,-460.0,0.00018458,2]
[373382308,1752979840196,-240.62,0.00018458,2]
[373382309,1752979840205,-460.0,0.00018458,2]
[373382310,1752979840215,-500.0,0.00018458,2]
[373382311,1752979840224,-516.18287834,0.00018458,2]
[373382312,1752979840233,-460.0,0.00018458,2]
[373382313,1752979840242,-460.0,0.00018458,2]
[373382314,1752979840252,-464.02653358,0.00018458,2]
[373382315,1752979840261,-466.00301324,0.00018458,2]
[373382316,1752979840271,-463.77934898,0.00018458,2]
[373382317,1752979840280,-463.85411066,0.00018458,2]
[373382318,1752979840290,-460.0,0.00018458,2]
[373382319,1752979840299,-464.83680731,0.00018458,2]
[373382320,1752979840309,-460.0,0.00018458,2]
[373382321,1752979840319,-439.0,0.00018458,2]
[373382322,1752979840331,-460.0,0.00018458,2]
[373382323,1752979840342,-460.0,0.00018458,2]
[373382324,1752979840351,-460.0,0.00018458,2]
[373382325,1752979840361,-460.0,0.00018458,2]
[373382326,1752979840371,-460.0,0.00018458,2]
[373382327,1752979840381,-463.38395493,0.00018458,2]
[373382328,1752979840391,-460.0,0.00018458,2]
[373382329,1752979840404,-533.98,0.00018458,2]
[373382331,1752979840413,-460.0,0.00018458,2]
[373382333,1752979840423,-283.69,0.00018458,2]
[373382334,1752979840433,-460.0,0.00018458,2]
[373382335,1752979840443,-460.0,0.00018458,2]
[373382337,1752979840452,-460.0,0.00018458,2]
[373382338,1752979840461,-460.0,0.00018458,2]
[373382339,1752979840471,-460.0,0.00018458,2]
[373382340,1752979840480,-371.66,0.00018458,2]
[373382341,1752979840490,-460.0,0.00018458,2]
[373382342,1752979840499,-460.0,0.00018458,2]
[373382343,1752979840509,-460.0,0.00018458,2]
[373382344,1752979840518,-460.0,0.00018458,2]
[373382345,1752979840527,-460.0,0.00018458,2]
[373382346,1752979840537,-460.0,0.00018458,2]
[373382347,1752979840546,-460.0,0.00018458,2]
[373382348,1752979840556,-460.0,0.00018458,2]
[373382349,1752979840565,-460.0,0.00018458,2]
[373382350,1752979840575,-460.0,0.00018458,2]
[373382351,1752979840584,-460.0,0.00018458,2]
[373382352,1752979840593,-460.0,0.00018458,2]
[373382353,1752979840602,-460.0,0.00018458,2]
[373382354,1752979840612,-460.0,0.00018458,2]
[373382355,1752979840622,-505.25433279,0.00018458,2]
[373382356,1752979840632,-462.60962999,0.00018558,2]
[373382357,1752979840641,-460.0,0.00018558,2]
[373382358,1752979840652,-460.0,0.00018558,2]
[373382359,1752979840661,-460.0,0.00018558,2]
[373382360,1752979840671,-464.66762062,0.00018558,2]
[373382361,1752979840680,-464.55129438,0.00018558,2]
[373382362,1752979840689,-463.53682294,0.00018558,2]
[373382363,1752979840699,-467.29651523,0.00018558,2]
[373382364,1752979840708,-460.0,0.00018558,2]
[373382365,1752979840718,-437.99628126,0.00018558,2]
[373382366,1752979840727,-550.1,0.00018558,2]
[373382367,1752979840737,-460.0,0.00018558,2]
[373382368,1752979840747,-460.0,0.00018558,2]
[373382369,1752979840756,-460.0,0.00018558,2]
[373382370,1752979840765,-460.0,0.00018558,2]
[373382371,1752979840775,-466.04393836,0.00018558,2]
[373382372,1752979840784,-488.87704508,0.00018558,2]
[373382373,1752979840793,-757.38,0.00018558,2]
[373382374,1752979840803,-461.66106539,0.00018558,2]
[373382375,1752979840812,-456.7044824,0.00018558,2]
[373382376,1752979840821,-460.0,0.00018558,2]
[373382377,1752979840831,-460.0,0.00018558,2]
[373382378,1752979840840,-460.0,0.00018558,2]
[373382379,1752979840850,-363.69608515,0.00018558,2]
[373382380,1752979840862,-461.94545973,0.00018558,2]
[373382381,1752979840871,-460.0,0.00018558,2]
[373382382,1752979840881,-445.6383823,0.00018558,2]
[373382383,1752979840891,-462.05530172,0.00018558,2]
[373382384,1752979840901,-460.0,0.00018558,2]
[373382385,1752979840910,-460.0,0.00018558,2]
[373382386,1752979840919,-460.0,0.00018558,2]
[373382387,1752979840929,-460.0,0.00018558,2]
[373382388,1752979840939,-460.0,0.00018558,2]
[373382389,1752979840948,-471.52297033,0.00018558,2]
[373382390,1752979840957,-460.0,0.00018558,2]
[373382391,1752979840967,-460.0,0.00018558,2]
[373382392,1752979840977,-460.0,0.00018558,2]
[373382393,1752979840987,-460.0,0.00018558,2]
[373382394,1752979840997,-460.0,0.00018558,2]
[373382395,1752979841007,-460.0,0.00018558,2]
[373382396,1752979841016,-460.0,0.00018558,2]
[373382397,1752979841027,-460.0,0.00018558,2]
[373382398,1752979841037,-460.0,0.00018558,2]
[373382399,1752979841046,-460.0,0.00018558,2]
[373382400,1752979841056,-460.0,0.00018558,2]
[373382401,1752979841065,-460.0,0.00018558,2]
[373382402,1752979841074,-462.826328,0.00018558,2]
[373382403,1752979841084,-531.11087607,0.00018558,2]
[373382404,1752979841093,-460.0,0.00018558,2]
[373382405,1752979841103,-466.10584049,0.00018558,2]
[373382406,1752979841112,-1537.01,0.00018558,2]
[373382407,1752979841122,-460.0,0.00018558,2]
[373382408,1752979841132,-460.0,0.00018558,2]
[373382409,1752979841142,-460.0,0.00018558,2]
[373382410,1752979841152,-410.96854598,0.00018559,2]
[373382411,1752979841161,-460.0,0.00018559,2]
[373382412,1752979841171,-460.0,0.00018559,2]
[373382413,1752979841181,-460.0,0.00018559,2]
[373382414,1752979841190,-460.0,0.00018559,2]
[373382415,1752979841200,-463.50397012,0.00018559,2]
[373382416,1752979841209,-462.29428087,0.00018559,2]
[373382417,1752979841218,-220.00817954,0.00018559,2]
[373382418,1752979841228,-461.54402447,0.00018563,2]
[373382419,1752979841238,-460.0,0.00018563,2]
[373382420,1752979841248,-462.61512538,0.00018563,2]
[373382421,1752979841258,-460.0,0.00018563,2]
[373382422,1752979841267,-460.0,0.00018563,2]
[373382423,1752979841277,-751.41058791,0.00018563,2]
[373382424,1752979841287,-462.31842167,0.00018563,2]
[373382425,1752979841296,-467.37906294,0.00018563,2]
[373382426,1752979841306,-460.0,0.00018563,2]
[373382427,1752979841316,-460.0,0.00018563,2]
[373382428,1752979841333,-460.0,0.00018563,2]
[373382429,1752979841343,-460.0,0.00018563,2]
[373382430,1752979841352,-460.0,0.00018563,2]
[373382431,1752979841362,-460.0,0.00018563,2]
[373382432,1752979841371,-460.0,0.00018563,2]
[373382433,1752979841381,-460.0,0.00018563,2]
[373382434,1752979841391,-460.0,0.00018563,2]
[373382435,1752979841401,-460.0,0.00018563,2]
[373382436,1752979841411,-460.0,0.00018563,2]
[373382437,1752979841420,-460.0,0.00018563,2]
[373382438,1752979841430,-460.0,0.00018563,2]
[373382439,1752979841439,-460.0,0.00018563,2]
[373382440,1752979841449,-544.0514008,0.00018564,2]
[373382441,1752979841459,-460.99371662,0.00018564,2]
[373382442,1752979841468,-461.68697617,0.00018564,2]
[373382443,1752979841477,-460.0,0.00018564,2]
[373382444,1752979841487,-460.0,0.00018564,2]
[373382445,1752979841497,-461.60393808,0.00018564,2]
[373382446,1752979841507,-460.0,0.00018564,2]
[373382447,1752979841516,-460.0,0.00018564,2]
[373382448,1752979841526,-460.73900236,0.00018564,2]
[373382449,1752979841535,-460.84945967,0.00018564,2]
[373382450,1752979841544,-463.15690728,0.00018564,2]
[373382451,1752979841554,-462.68724381,0.00018564,2]
[373382452,1752979841563,-465.32982639,0.00018564,2]
[373382453,1752979841573,-460.0,0.00018564,2]
[373382454,1752979841583,-461.29807438,0.00018564,2]
[373382455,1752979841592,-460.0,0.00018564,2]
[373382456,1752979841602,-470.28205408,0.00018564,2]
[373382457,1752979841611,-460.0,0.00018564,2]
[373382458,1752979841620,-460.0,0.00018564,2]
[373382459,1752979841630,-460.0,0.00018564,2]
[373382460,1752979841639,-493.75,0.00018564,2]
[373382461,1752979841649,-460.0,0.00018564,2]
[373382462,1752979841658,-4454.12,0.00018564,2]
[373382463,1752979841667,-344.73350716,0.00018564,2]
[373382464,1752979841677,-460.0,0.00018565,2]
[373382465,1752979841687,-570.17630456,0.00018565,2]
[373382466,1752979841696,-466.88764311,0.00018565,2]
[373382467,1752979841706,-287.8973018,0.00018565,2]
[373382468,1752979841715,-460.0,0.00018565,2]
[373382469,1752979841724,-460.0,0.00018565,2]
[373382470,1752979841734,-460.0,0.00018565,2]
[373382471,1752979841743,-460.0,0.00018565,2]
[373382472,1752979841752,-460.0,0.00018565,2]
[373382473,1752979841761,-438.32432693,0.00018565,2]
[373382474,1752979841778,-460.0,0.00018565,2]
[373382475,1752979841791,-487.6,0.00018565,2]
[373382476,1752979841802,-460.0,0.00018565,2]
[373382477,1752979841811,-460.0,0.00018565,2]
[373382478,1752979841821,-460.0,0.00018565,2]
[373382479,1752979841832,-460.0,0.00018565,2]
[373382480,1752979841841,-460.0,0.00018565,2]
[373382481,1752979841851,-460.0,0.00018565,2]
[373382482,1752979841861,-460.0,0.00018565,2]
[373382483,1752979841871,-460.0,0.00018565,2]
[373382484,1752979841881,-460.0,0.00018565,2]
[373382485,1752979841890,-237.17240886,0.00018565,2]
[373382486,1752979841900,-460.0,0.00018565,2]
[373382487,1752979841909,-460.0,0.00018565,2]
[373382488,1752979841919,-511.9516689,0.00018565,2]
[373382489,1752979841928,-460.0,0.00018565,2]
[373382490,1752979841938,-460.0,0.00018565,2]
[373382491,1752979841947,-460.0,0.00018565,2]
[373382492,1752979841957,-460.0,0.00018565,2]
[373382493,1752979841967,-462.08499496,0.00018565,2]
[373382494,1752979841978,-460.0,0.00018565,2]
[373382495,1752979841997,-460.0,0.00018565,2]
[373382496,1752979842007,-463.01139426,0.00018565,2]
[373382497,1752979842016,-460.0,0.00018565,2]
[373382498,1752979842026,-460.0,0.00018565,2]
[373382499,1752979842035,-450.0,0.00018565,2]
[373382500,1752979842045,-460.0,0.00018565,2]
[373382501,1752979842055,-460.0,0.00018565,2]
[373382502,1752979842066,-465.24703488,0.00018566,2]
[373382503,1752979842075,-500.0,0.00018566,2]
[373382504,1752979842085,-500.0,0.00018566,2]
[373382505,1752979842095,-500.0,0.00018566,2]
[373382506,1752979842104,-460.0,0.00018566,2]
[373382507,1752979842114,-463.01106057,0.00018566,2]
[373382508,1752979842124,-500.0,0.00018567,2]
[373382509,1752979842133,-460.0,0.00018567,2]
[373382510,1752979842143,-1409.85,0.00018567,2]
[373382511,1752979842153,-461.85552712,0.00018568,2]
[373382512,1752979842163,-462.11288039,0.00018568,2]
[373382513,1752979842175,-460.0,0.00018568,2]
[373382514,1752979842187,-460.0,0.00018568,2]
[373382515,1752979842196,-513.29131247,0.00018568,2]
[373382516,1752979842209,-460.0,0.00018568,2]
[373382517,1752979842220,-460.0,0.00018568,2]
[373382518,1752979842229,-461.84691379,0.00018568,2]
[373382519,1752979842239,-466.10827602,0.00018568,2]
[373382520,1752979842248,-464.12262079,0.00018568,2]
[373382521,1752979842258,-464.10776916,0.00018568,2]
[373382522,1752979842267,-540.0,0.00018568,2]
[373382523,1752979842277,-462.23739118,0.00018568,2]
[373382524,1752979842287,-469.57851181,0.00018568,2]
[373382525,1752979842297,-460.0,0.00018568,2]
[373382526,1752979842306,-409.10089809,0.00018568,2]
[373382527,1752979842316,-461.91022408,0.00018568,2]
[373382528,1752979842331,-460.0,0.00018568,2]
[373382529,1752979842340,-500.0,0.00018568,2]
[373382530,1752979842350,-500.0,0.00018568,2]
[373382531,1752979842359,-162.0,0.00018568,2]
[373382532,1752979842370,-491.33392352,0.00018569,2]
[373382533,1752979842380,-461.19875926,0.00018569,2]
[373382534,1752979842389,-460.0,0.00018569,2]
[373382535,1752979842400,-462.56908952,0.00018569,2]
[373382536,1752979842410,-461.87191271,0.00018569,2]
[373382537,1752979842420,-461.43696728,0.00018569,2]
[373382538,1752979842430,-460.0,0.00018569,2]
[373382539,1752979842439,-460.0,0.00018569,2]
[373382540,1752979842450,-500.0,0.00018569,2]
[373382541,1752979842459,-500.0,0.00018569,2]
[373382542,1752979842469,-500.0,0.00018569,2]
[373382543,1752979842479,-460.0,0.00018569,2]
[373382544,1752979842489,-943.29,0.00018569,2]
[373382545,1752979842499,-541.62,0.00018569,2]
[373382546,1752979842509,-460.0,0.00018569,2]
[373382547,1752979842520,-500.0,0.0001857,2]
[373382548,1752979842530,-641.51816423,0.0001857,2]
[373382549,1752979842540,-460.0,0.0001857,2]
[373382550,1752979842550,-498.4,0.0001857,2]
[373382551,1752979842560,-460.0,0.0001857,2]
[373382552,1752979842569,-551.22934329,0.00018573,2]
[373382553,1752979842579,-501.43242505,0.00018573,2]
[373382554,1752979842588,-500.0,0.00018573,2]
[373382555,1752979842597,-653.45313791,0.00018673,2]
[373382556,1752979842607,-460.0,0.00018731,2]
[373382557,1752979842616,-460.0,0.00018731,2]
[373382558,1752979842625,-477.9,0.00018731,2]
[373382559,1752979842635,-460.0,0.00018732,2]
[373382560,1752979842644,-466.50958474,0.00018732,2]
[373382561,1752979842654,-423.01309441,0.00018732,2]
[373382562,1752979842663,-460.0,0.00018732,2]
[373382563,1752979842672,-460.0,0.00018732,2]
[373382564,1752979842682,-460.0,0.00018732,2]
[373382565,1752979842691,-533.98,0.00018732,2]
[373382566,1752979842701,-460.0,0.00018732,2]
[373382567,1752979842710,-460.0,0.00018732,2]
[373382568,1752979842870,-460.0,0.00018732,2]
[373382569,1752979842879,-460.0,0.00018732,2]
[373382570,1752979842889,-460.0,0.00018732,2]
[373382571,1752979842899,-460.0,0.00018732,2]
[373382572,1752979842908,-460.0,0.00018732,2]
[373382573,1752979842917,-460.0,0.00018732,2]
[373382574,1752979842926,-460.0,0.00018732,2]
[373382575,1752979842935,-473.06424975,0.00018732,2]
[373382576,1752979842945,-460.0,0.00018732,2]
[373382577,1752979842954,-460.0,0.00018732,2]
[373382578,1752979842964,-460.0,0.00018732,2]
[373382579,1752979842973,-460.0,0.00018732,2]
[373382580,1752979842983,-357.0,0.00018732,3]
[373382581,1752979842992,-178.5,0.00018732,3]
[373382582,1752979843002,-535.51,0.00018732,3]
[373382583,1752979843012,-100482.94289748,0.00018742,2]
[373382584,1752979843021,-500.0,0.00018773,2]
[373382585,1752979843031,-487.96835181,0.00018773,2]
[373382586,1752979843040,-501.29624381,0.00018773,2]
[373382587,1752979843049,-503.89624385,0.00018773,2]
[373382588,1752979843058,-500.0,0.00018773,2]
[373382589,1752979843068,-178.96555536,0.00018773,2]
[373382591,1752979843078,-501.22358452,0.00018773,2]
[373382592,1752979843087,-500.0,0.00018773,2]
[373382593,1752979843098,-500.0,0.00018773,2]
[373382594,1752979843108,-500.0,0.00018773,2]
[373382595,1752979843117,-500.0,0.00018773,2]
[373382596,1752979843127,-550.1,0.00018832,2]
[373382597,1752979843137,-460.0,0.00018832,2]
[373382598,1752979843146,-460.0,0.00018832,2]
[373382600,1752979843156,-757.38,0.00018832,2]
[373382601,1752979843165,-460.0,0.00018832,2]
[373382602,1752979843175,-460.0,0.00018832,2]
[373382604,1752979843184,-460.0,0.00018832,2]
[373382605,1752979843194,-460.0,0.00018832,2]
[373382606,1752979843203,-460.0,0.00018832,2]
[373382607,1752979843213,-460.0,0.00018832,2]
[373382609,1752979843222,-460.0,0.00018832,2]
[373382610,1752979843231,-1537.01,0.00018832,2]
[373382611,1752979843240,-460.0,0.00018832,2]
[373382612,1752979843249,-460.0,0.00018832,2]
[373382613,1752979843258,-470.8700511,0.00018833,2]
[373382615,1752979843268,-460.70396665,0.00018833,2]
[373382617,1752979843278,-460.0,0.00018837,2]
[373382619,1752979843288,-460.0,0.00018837,2]
[373382621,1752979843297,-460.0,0.00018837,2]
[373382622,1752979843306,-460.0,0.00018837,2]
[373382623,1752979843316,-460.0,0.00018837,2]
[373382624,1752979843328,-155.69,0.00018837,2]
[373382625,1752979843337,-460.0,0.00018837,2]
[373382627,1752979843346,-460.0,0.00018838,2]
[373382628,1752979843355,-460.0,0.00018838,2]
[373382629,1752979843364,-460.0,0.00018838,2]
[373382630,1752979843373,-460.0,0.00018838,2]
[373382631,1752979843382,-493.75,0.00018838,2]
[373382632,1752979843392,-460.0,0.00018838,2]
[373382633,1752979843401,-4454.12,0.00018838,2]
[373382634,1752979843411,-165.35828905,0.00018839,2]
[373382635,1752979843420,-460.0,0.00018839,2]
[373382636,1752979843429,-481.78470352,0.00018839,2]
[373382637,1752979843438,-460.0,0.00018839,2]
[373382638,1752979843447,-460.0,0.00018839,2]
[373382639,1752979843457,-460.0,0.00018839,2]
[373382640,1752979843466,-460.0,0.00018839,2]
[373382641,1752979843475,-460.0,0.00018839,2]
[373382642,1752979843484,-460.0,0.00018839,2]
[373382643,1752979843493,-460.0,0.00018839,2]
[373382644,1752979843502,-460.0,0.00018839,2]
[373382645,1752979843511,-572.68780049,0.0001884,2]
[373382646,1752979843520,-1409.85,0.00018841,2]
[373382647,1752979843529,-460.0,0.00018842,2]
[373382648,1752979843539,-460.0,0.00018843,2]
[373382649,1752979843548,-943.29,0.00018843,2]
[373382650,1752979843557,-541.62,0.00018843,2]
[373382651,1752979843566,-460.0,0.00018843,2]
[373382652,1752979843575,-460.0,0.00018844,2]
[373382653,1752979843584,-498.4,0.00018844,2]
[373382654,1752979843593,-583.98076329,0.000189,2]
[373382655,1752979843602,-7794.36221879,0.000189,2]
[373382657,1752979843612,-258.72,0.00019,2]
[373382659,1752979843621,-460.0,0.00019005,2]
[373382660,1752979843632,-477.9,0.00019005,2]
[373382661,1752979843642,-477.91546652,0.00019006,2]
[373382662,1752979843651,-460.0,0.00019006,2]
[373382663,1752979843660,-460.0,0.00019006,2]
[373382665,1752979843670,-460.0,0.00019006,2]
[373382666,1752979843680,-533.98,0.00019006,2]
[373382667,1752979843689,-460.0,0.00019006,2]
[373382668,1752979843699,-460.0,0.00019006,2]
[373382669,1752979843708,-460.0,0.00019006,2]
[373382670,1752979843719,-460.0,0.00019006,2]
[373382671,1752979843729,-460.0,0.00019006,2]
[373382672,1752979843741,-460.0,0.00019006,2]
[373382673,1752979843751,-460.0,0.00019006,2]
[373382674,1752979843762,-460.0,0.00019006,2]
[373382675,1752979843771,-460.0,0.00019006,2]
[373382676,1752979843781,-460.0,0.00019006,2]
[373382677,1752979843790,-460.0,0.00019006,2]
[373382678,1752979843800,-460.0,0.00019006,2]
[373382679,1752979843810,-1241.7886414,0.00019013,2]
[373382680,1752979843820,-420.0,0.00019066,2]
[373382681,1752979843830,-550.1,0.00019106,2]
[373382682,1752979843840,-460.0,0.00019106,2]
[373382683,1752979843850,-460.0,0.00019106,2]
[373382684,1752979843863,-757.38,0.00019106,2]
[373382685,1752979843874,-460.0,0.00019106,2]
[373382686,1752979843884,-460.0,0.00019106,2]
[373382687,1752979843894,-460.0,0.00019106,2]
[373382688,1752979843905,-460.0,0.00019106,2]
[373382689,1752979843915,-460.0,0.00019106,2]
[373382690,1752979843925,-348.10325896,0.00019106,2]
[373382691,1752979843934,-460.0,0.00019106,2]
[373382692,1752979843943,-1537.01,0.00019106,2]
[373382693,1752979843952,-460.0,0.00019106,2]
[373382695,1752979843961,-460.0,0.00019106,2]
[373382696,1752979843971,-460.0,0.00019111,2]
[373382697,1752979843980,-460.0,0.00019111,2]
[373382698,1752979843990,-460.0,0.00019111,2]
[373382699,1752979843999,-460.0,0.00019111,2]
[373382700,1752979844009,-460.0,0.00019112,2]
[373382701,1752979844019,-460.0,0.00019112,2]
[373382702,1752979844028,-460.0,0.00019112,2]
[373382703,1752979844039,-493.75,0.00019112,2]
[373382704,1752979844049,-460.0,0.00019112,2]
[373382705,1752979844059,-4454.12,0.00019112,2]
[373382707,1752979844071,-460.0,0.00019113,2]
[373382709,1752979844080,-460.0,0.00019113,2]
[373382711,1752979844091,-460.0,0.00019113,2]
[373382712,1752979844100,-460.0,0.00019113,2]
[373382713,1752979844110,-1409.85,0.00019115,2]
[373382714,1752979844119,-460.0,0.00019117,2]
[373382715,1752979844129,-943.29,0.00019117,2]
[373382716,1752979844138,-541.62,0.00019117,2]
[373382717,1752979844149,-460.0,0.00019117,2]
[373382718,1752979844158,-460.0,0.00019118,2]
[373382719,1752979844168,-498.4,0.00019118,2]
[373382720,1752979844177,-478.57004217,0.00019121,2]
[373382721,1752979844186,-7794.36221865,0.00019141,2]
[373382722,1752979844195,-178.597976,0.00019178,2]
[373382723,1752979844204,-460.0,0.00019279,2]
[373382724,1752979844214,-477.9,0.00019279,2]
[373382725,1752979844223,-460.0,0.0001928,2]
[373382726,1752979844233,-460.0,0.0001928,2]
[373382727,1752979844242,-533.98,0.0001928,2]
[373382728,1752979844252,-460.0,0.0001928,2]
[373382729,1752979844261,-460.0,0.0001928,2]
[373382730,1752979844270,-460.0,0.0001928,2]
[373382731,1752979844279,-460.0,0.0001928,2]
[373382732,1752979844288,-460.0,0.0001928,2]
[373382733,1752979844297,-460.0,0.0001928,2]
[373382734,1752979844306,-460.0,0.0001928,2]
[373382735,1752979844316,-460.0,0.0001928,2]
[373382736,1752979844327,-460.0,0.0001928,2]
[373382737,1752979844337,-460.0,0.0001928,2]
[373382738,1752979844346,-460.0,0.0001928,2]
[373382739,1752979844355,-214.91313474,0.00019321,2]
[373382740,1752979844365,-500.0,0.00019321,2]